bitfinex/quotes_SOLUSD_20240826
["timestamp","ask_amount","ask_price","bid_price","bid_amount"]
[1724660454179,390.3,160.74,160.66,68.76923433]
[1724660454379,1.55565277,160.73,160.67,20.0]
[1724660454983,1.55565277,160.73,160.65,20.0]
[1724660455791,390.3,160.74,160.66,23.76923433]
[1724660455996,1.5556443,160.73,160.67,20.0]
[1724660456316,1.55564306,160.75,160.67,20.0]
[1724660458897,1.55572757,160.74,160.67,20.0]
[1724660459597,1.55565365,160.73,160.67,20.0]
[1724660460521,1.55565974,160.75,160.67,20.0]
[1724660462197,21.296,160.76,160.7,23.76923433]
[1724660462520,15.2674,160.76,160.7,23.76923433]
[1724660462685,15.2674,160.76,160.71,20.0]
[1724660463434,21.5102,160.8,160.72,23.76923433]
[1724660463727,21.5102,160.8,160.73,20.0]
[1724660463901,21.5102,160.8,160.74,23.76923433]
[1724660464086,15.0971,160.8,160.74,23.76923433]
[1724660464494,22.4369,160.84,160.75,45.0]
[1724660464815,1.55474191,160.83,160.76,20.0]
[1724660466323,1.55474215,160.82,160.76,20.0]
[1724660466804,1.55474215,160.82,160.75,20.0]
[1724660467515,1.55474215,160.82,160.73,20.0]
[1724660469828,1.55474215,160.82,160.74,23.76923433]
[1724660470133,1.55474215,160.82,160.75,20.0]
[1724660470326,22.4369,160.84,160.76,23.76923433]
[1724660470514,23.99164908,160.84,160.77,20.0]
[1724660473038,23.99164908,160.84,160.75,20.0]
[1724660473332,30.20904908,160.84,160.75,20.0]
[1724660473632,23.99164908,160.84,160.73,20.0]
[1724660474731,92.3207748,160.83,160.69,29.63802391]
[1724660475039,1.55535628,160.82,160.69,31.63378508]
[1724660475748,16.5869,160.81,160.69,31.63378508]
[1724660475937,1.555377,160.8,160.69,31.63378508]
[1724660476133,1.5553813,160.79,160.69,31.63378508]
[1724660476353,16.5869,160.81,160.73,23.76923433]
[1724660476524,18.14192705,160.81,160.73,23.76923433]
[1724660476925,16.5869,160.81,160.73,23.76923433]
[1724660477356,16.5869,160.81,160.75,23.76923433]
[1724660477521,16.5869,160.81,160.76,20.0]
[1724660478554,16.5869,160.81,160.73,20.0]
[1724660479734,16.5869,160.81,160.74,45.0]
[1724660479935,16.5869,160.81,160.75,20.0]
[1724660483271,1.55484597,160.8,160.75,20.0]
[1724660483436,1.55484597,160.8,160.73,20.0]
[1724660483637,1.55484597,160.8,160.75,23.76923433]
[1724660483837,16.5869,160.81,160.76,20.0]
[1724660484246,1.55491411,160.8,160.76,20.0]
[1724660486579,16.5869,160.81,160.76,20.0]
[1724660488363,6.4697,160.83,160.77,23.76923433]
[1724660488549,16.69899165,160.85,160.77,23.76923433]
[1724660488740,16.69899165,160.85,160.78,20.0]
[1724660489664,15.1444,160.85,160.78,20.0]
[1724660489966,16.69893849,160.85,160.78,20.0]
[1724660490969,16.69893849,160.85,160.76,20.0]
[1724660492259,15.1444,160.85,160.76,20.91498238]
[1724660492463,1.55490319,160.84,160.76,20.0]
[1724660492653,7.77220319,160.84,160.73,23.76923433]
[1724660493991,21.3614,160.85,160.75,23.76923433]
[1724660494147,21.3614,160.85,160.76,20.0]
[1724660495444,1.55497735,160.84,160.76,20.0]
[1724660495959,1.55497735,160.84,160.77,23.76923433]
[1724660496149,1.55497735,160.84,160.78,20.0]
[1724660499343,1.55497735,160.84,160.79,2.80095512]
[1724660499545,1.55497735,160.84,160.8,1.55608618]
[1724660500168,1.55497735,160.84,160.79,2.80095512]
[1724660500376,1.55497735,160.84,160.8,1.55608618]
[1724660502074,15.1444,160.85,160.8,1.55608618]
[1724660502275,15.1444,160.85,160.81,1.55608618]
[1724660503351,15.1444,160.85,160.8,20.0]
[1724660503551,15.1444,160.85,160.81,1.55606896]
[1724660503779,15.1444,160.85,160.8,20.91407597]
[1724660503979,15.1444,160.85,160.81,1.55607689]
[1724660504375,15.1444,160.85,160.8,20.0]
[1724660504576,15.1444,160.85,160.81,1.55607719]
[1724660504872,15.1444,160.85,160.8,20.0]
[1724660505054,15.1444,160.85,160.81,1.55607688]
[1724660505259,15.1444,160.85,160.82,1.55605468]
[1724660505465,15.1444,160.85,160.81,1.24484374]
[1724660505660,15.1444,160.85,160.82,2.80089842]
[1724660505891,15.1444,160.85,160.81,1.24484374]
[1724660506181,15.1444,160.85,160.82,1.55600326]
[1724660506360,15.1444,160.85,160.83,1.55600277]
[1724660506674,15.1444,160.85,160.82,20.0]
[1724660506880,15.1444,160.85,160.83,1.55590962]
[1724660507183,15.1444,160.85,160.82,20.0]
[1724660507496,15.1444,160.85,160.83,1.55596184]
[1724660507785,15.1444,160.85,160.81,9.50982498]
[1724660507988,15.1444,160.85,160.82,22.80074502]
[1724660508284,15.1444,160.85,160.83,1.55596946]
[1724660508483,15.1444,160.85,160.82,20.0]
[1724660508792,1.5544165,160.84,160.83,1.55596977]
[1724660509168,1.5544165,160.84,160.77,20.23741459]
[1724660509369,1.5544165,160.84,160.78,6.27647606]
[1724660509676,1.5544165,160.84,160.79,4.72104218]
[1724660509862,15.1444,160.85,160.8,2.80109717]
[1724660510061,15.1444,160.85,160.81,1.55623784]
[1724660510274,15.1444,160.85,160.82,1.55612544]
[1724660510487,15.1444,160.85,160.83,1.55612544]
[1724660510709,15.1444,160.85,160.82,1.2448543]
[1724660510899,15.1444,160.85,160.83,1.55604348]
[1724660511188,15.1444,160.85,160.81,3.47629287]
[1724660511384,15.1444,160.85,160.82,1.55604411]
[1724660511586,15.1444,160.85,160.83,1.55604411]
[1724660511891,15.1444,160.85,160.82,3.47629287]
[1724660511892,16.6988641,160.85,160.82,3.47629287]
[1724660512101,16.6988641,160.85,160.83,1.55597961]
[1724660512300,16.6988641,160.85,160.81,9.50982498]
[1724660512587,16.6988641,160.85,160.82,1.55598059]
[1724660512809,16.6988641,160.85,160.83,1.55598059]
[1724660512997,16.6988641,160.85,160.84,1.55598059]
[1724660513188,15.1444,160.85,160.82,3.47611318]
[1724660513393,16.69885509,160.85,160.83,1.55597051]
[1724660513587,16.69885509,160.85,160.82,3.47611318]
[1724660513810,16.69885509,160.85,160.83,1.55596952]
[1724660514107,16.69885509,160.85,160.82,3.47611318]
[1724660514309,16.69885509,160.85,160.83,1.55596983]
[1724660514508,16.69885509,160.85,160.82,3.47611318]
[1724660514714,16.69885509,160.85,160.83,1.55596983]
[1724660514912,16.69885509,160.85,160.82,3.47611318]
[1724660515079,16.69885509,160.85,160.83,1.55596983]
[1724660515282,16.69885509,160.85,160.81,9.50982498]
[1724660515783,1.55442873,160.84,160.82,1.55597014]
[1724660515981,1.55442873,160.84,160.83,1.55597014]
[1724660518989,15.1444,160.85,160.83,1.55597014]
[1724660519209,15.1444,160.85,160.81,12.98594527]
[1724660519412,15.1444,160.85,160.82,1.55596952]
[1724660519586,15.1444,160.85,160.83,1.55596952]
[1724660519789,15.1444,160.85,160.81,9.50982498]
[1724660520016,15.1444,160.85,160.82,1.55597014]
[1724660520307,15.1444,160.85,160.83,1.55597014]
[1724660520490,15.1444,160.85,160.81,9.50982498]
[1724660520698,15.1444,160.85,160.82,1.55597014]
[1724660520914,1.55443367,160.84,160.83,1.55597014]
[1724660521123,15.1444,160.85,160.83,1.55597014]
[1724660521291,15.1444,160.85,160.84,1.55596289]
[1724660521515,15.1444,160.85,160.81,9.50982498]
[1724660521696,15.1444,160.85,160.84,1.55596145]
[1724660521916,15.1444,160.85,160.81,9.50982498]
[1724660525113,15.1444,160.85,160.79,6.0074344]
[1724660525332,15.1444,160.85,160.8,23.47545228]
[1724660525525,16.69911982,160.85,160.81,3.47545228]
[1724660525693,16.69911982,160.85,160.8,20.0]
[1724660525895,16.69911982,160.85,160.81,3.47532807]
[1724660526221,16.69911982,160.85,160.79,20.0]
[1724660526391,16.69911982,160.85,160.8,18.98985888]
[1724660526597,15.1444,160.85,160.81,23.4744372]
[1724660526826,15.1444,160.85,160.82,3.4744372]
[1724660526994,15.1444,160.85,160.81,20.0]
[1724660527324,1.55446105,160.84,160.82,3.47288277]
[1724660527628,1.55446105,160.84,160.81,20.0]
[1724660528001,1.55446105,160.84,160.82,3.47190129]
[1724660528197,1.55446105,160.84,160.81,20.0]
[1724660528510,1.55446105,160.84,160.82,3.47248593]
[1724660528823,1.55446105,160.84,160.81,20.0]
[1724660529029,1.55446105,160.84,160.82,3.47244369]
[1724660529198,1.55446105,160.84,160.81,20.0]
[1724660529403,1.55446105,160.84,160.82,3.47244417]
[1724660529611,1.55446105,160.84,160.81,20.0]
[1724660529819,1.55446105,160.84,160.82,3.47245773]
[1724660530028,1.55446105,160.84,160.81,20.0]
[1724660530335,1.55446105,160.84,160.82,3.47245773]
[1724660530632,1.55446105,160.84,160.81,20.0]
[1724660531007,1.55446105,160.84,160.82,3.47244931]
[1724660531206,1.55446105,160.84,160.81,20.0]
[1724660531732,1.55446105,160.84,160.79,26.00304213]
[1724660531934,1.55446105,160.84,160.8,9.47600451]
[1724660532135,15.1444,160.85,160.81,23.47296238]
[1724660532315,15.1444,160.85,160.81,20.0]
[1724660532633,15.1444,160.85,160.79,15.51331374]
[1724660532834,15.1444,160.85,160.8,9.47693629]
[1724660533008,15.1444,160.85,160.81,3.47344753]
[1724660533207,15.1444,160.85,160.82,3.47320904]
[1724660533409,15.1444,160.85,160.8,6.00346191]
[1724660533618,1.5547539,160.84,160.81,3.47325643]
[1724660533824,1.5547539,160.84,160.82,3.47325643]
[1724660534015,1.5547539,160.84,160.79,29.50982498]
[1724660534222,15.1444,160.85,160.8,9.47722672]
[1724660534416,15.1444,160.85,160.81,3.47341119]
[1724660534626,15.1444,160.85,160.82,3.47341119]
[1724660534826,1.55472541,160.84,160.79,29.50982498]
[1724660535026,1.55472541,160.84,160.8,9.47744575]
[1724660535324,1.55472541,160.84,160.81,3.47349146]
[1724660535632,1.55472541,160.84,160.8,6.00821457]
[1724660535832,1.55472541,160.84,160.81,3.47564278]
[1724660536138,15.1444,160.85,160.8,6.00765226]
[1724660536335,15.1444,160.85,160.81,3.47576125]
[1724660536513,15.1444,160.85,160.82,3.47516368]
[1724660536842,16.69897667,160.85,160.83,3.47472921]
[1724660537133,16.69897667,160.85,160.8,9.50982498]
[1724660537441,16.69897667,160.85,160.81,9.48085692]
[1724660537634,16.69897667,160.85,160.82,3.47473601]
[1724660537837,16.69897667,160.85,160.83,3.47473601]
[1724660538138,16.69897667,160.85,160.79,9.50982498]
[1724660538340,16.69897667,160.85,160.8,9.48091047]
[1724660538515,16.69897667,160.85,160.81,9.48091047]
[1724660538846,16.69897667,160.85,160.82,3.47475581]
[1724660539006,16.69897667,160.85,160.78,7.84426579]
[1724660539211,16.69897667,160.85,160.79,32.98568506]
[1724660539414,16.69897667,160.85,160.8,3.47586008]
[1724660539645,16.69897667,160.85,160.79,29.50982498]
[1724660539646,16.69897667,160.85,160.81,3.47586008]
[1724660539812,1.55460902,160.86,160.82,3.47586008]
[1724660540015,1.55460902,160.86,160.83,3.47586008]
[1724660540220,1.55460902,160.86,160.84,3.47586008]
[1724660540421,1.55460902,160.86,160.81,9.50982498]
[1724660540736,1.55460902,160.86,160.82,3.47389962]
[1724660541041,1.55447328,160.88,160.83,3.47389962]
[1724660541243,1.55447328,160.88,160.84,3.47389962]
[1724660541435,1.55447328,160.88,160.85,3.473714]
[1724660541608,1.55447328,160.88,160.81,9.50982498]
[1724660541942,1.55447328,160.88,160.82,3.47343628]
[1724660542243,1.55447328,160.88,160.81,9.50982498]
[1724660542542,1.55447328,160.88,160.82,3.47356986]
[1724660542745,1.55447328,160.88,160.83,3.47356986]
[1724660542920,1.55447328,160.88,160.84,3.47356986]
[1724660543123,1.55447328,160.88,160.85,3.47356986]
[1724660543321,1.55447328,160.88,160.81,9.50982498]
[1724660543521,1.55447328,160.88,160.82,3.47380711]
[1724660543739,1.55447328,160.88,160.83,3.47380711]
[1724660543932,1.55447328,160.88,160.81,9.50982498]
[1724660544236,1.55447328,160.88,160.83,9.50982498]
[1724660544441,1.55447328,160.88,160.84,20.0]
[1724660551253,1.55447328,160.88,160.83,9.50982498]
[1724660551547,1.55447328,160.88,160.84,20.0]
[1724660552346,1.55447328,160.88,160.81,9.50982498]
[1724660552539,1.55447328,160.88,160.82,20.0]
[1724660555030,1.55447328,160.88,160.83,9.50982498]
[1724660555248,1.55447328,160.88,160.84,20.0]
[1724660556447,1.55447328,160.88,160.81,15.62905994]
[1724660556660,1.55447328,160.88,160.82,20.0]
[1724660557764,411.7887,160.89,160.78,14.62216125]
[1724660557943,411.7887,160.89,160.8,9.50982498]
[1724660558152,411.7887,160.89,160.8,10.42401435]
[1724660558335,411.7887,160.89,160.8,9.50982498]
[1724660558836,1.554527,160.88,160.8,9.50982498]
[1724660559242,6.2158,160.88,160.81,20.0]
[1724660559969,1.55465752,160.87,160.81,20.0]
[1724660563846,1.55465752,160.87,160.81,23.87248622]
[1724660564172,1.55465752,160.87,160.82,9.50982498]
[1724660564744,1.55436034,160.88,160.82,9.50982498]
[1724660567469,1.55436034,160.88,160.78,8.50292629]
[1724660567772,1.55436034,160.88,160.81,9.50982498]
[1724660567964,1.55436034,160.88,160.82,20.0]
[1724660571176,1.55436034,160.88,160.83,1.24477306]
[1724660571359,1.55436034,160.88,160.84,1.24477306]
[1724660571668,1.55436034,160.88,160.85,1.24477306]
[1724660571859,1.55436034,160.88,160.82,20.0]
[1724660572058,1.55436034,160.88,160.83,1.24476597]
[1724660572273,1.55436034,160.88,160.84,1.24476597]
[1724660572574,1.55436034,160.88,160.79,33.38096494]
[1724660572769,1.55436034,160.88,160.8,1.24487744]
[1724660572966,1.55436034,160.88,160.81,1.24487744]
[1724660573174,1.55436034,160.88,160.82,1.24487744]
[1724660573354,1.55436034,160.88,160.83,1.24487744]
[1724660573549,1.55436034,160.88,160.84,1.24487744]
[1724660573751,1.55436034,160.88,160.79,9.50982498]
[1724660573952,1.55436034,160.88,160.8,21.24487932]
[1724660574183,1.55436034,160.88,160.81,1.24487932]
[1724660574356,1.55436034,160.88,160.82,1.24487932]
[1724660574556,1.55436034,160.88,160.83,1.24487932]
[1724660574856,1.55436034,160.88,160.8,20.0]
[1724660575057,1.55436034,160.88,160.81,1.24488471]
[1724660575377,1.55436034,160.88,160.82,1.24488471]
[1724660575582,1.55436034,160.88,160.83,1.24488471]
[1724660575875,1.55436034,160.88,160.8,20.0]
[1724660576079,7.77016034,160.88,160.81,1.24489059]
[1724660576280,6.2163,160.87,160.82,1.24489059]
[1724660576595,15.2307,160.84,160.83,1.24489059]
[1724660576782,6.218,160.83,160.76,1.24520735]
[1724660576953,1.55504598,160.82,160.77,1.24520735]
[1724660577154,1.55504598,160.82,160.78,1.24520735]
[1724660577474,1.55504598,160.82,160.74,18.01275127]
[1724660577674,1.55504598,160.82,160.75,1.24529786]
[1724660577984,1.55504598,160.82,160.76,1.24529786]
[1724660578150,6.2185,160.81,160.77,1.24529786]
[1724660578351,1.55523021,160.8,160.74,8.50292629]
[1724660578587,1.55533648,160.79,160.74,8.50292629]
[1724660578750,1.55533648,160.79,160.72,9.50982498]
[1724660578954,15.9662,160.78,160.73,1.2454977]
[1724660579164,1.55538928,160.77,160.72,9.50982498]
[1724660579367,1.55538928,160.77,160.73,1.24549967]
[1724660579653,17.52154727,160.78,160.74,1.24549967]
[1724660579952,17.52154727,160.78,160.72,9.50982498]
[1724660580147,17.52154727,160.78,160.73,1.24550824]
[1724660580148,15.9662,160.78,160.73,1.24550824]
[1724660580404,15.9662,160.78,160.72,9.50982498]
[1724660580578,15.9662,160.78,160.73,1.24551335]
[1724660580895,15.9662,160.78,160.72,9.50982498]
[1724660581075,15.9662,160.78,160.73,21.24551544]
[1724660581276,15.9662,160.78,160.73,20.0]
[1724660582304,15.9662,160.78,160.74,1.55688247]
[1724660582482,15.9662,160.78,160.73,20.0]
[1724660582683,15.9662,160.78,160.74,1.55688247]
[1724660583004,15.9662,160.78,160.73,20.0]
[1724660586020,1.55525452,160.77,160.73,20.0]
[1724660586504,1.5552545,160.76,160.73,20.0]
[1724660586813,1.5552545,160.76,160.7,9.50982498]
[1724660587007,1.5552545,160.76,160.7,11.06673017]
[1724660587213,1.55555264,160.77,160.7,11.06673017]
[1724660587516,15.9662,160.78,160.71,10.42603014]
[1724660587691,15.9662,160.78,160.71,0.91620516]
[1724660587910,1.55542777,160.77,160.7,1.55695904]
[1724660588219,1.55557323,160.76,160.69,18.01275127]
[1724660588425,1.55557323,160.76,160.7,21.55695904]
[1724660588627,1.55557323,160.76,160.7,20.0]
[1724660591200,1.55557323,160.76,160.67,9.50982498]
[1724660591401,391.85557323,160.76,160.68,20.0]
[1724660591602,21.6398,160.74,160.65,9.50982498]
[1724660591803,1.55595031,160.73,160.65,19.57014365]
[1724660592027,1.55595031,160.73,160.67,9.50982498]
[1724660592398,21.6398,160.74,160.67,9.50982498]
[1724660593003,21.6398,160.74,160.68,20.0]
[1724660593401,1.55578427,160.73,160.68,20.0]
[1724660593817,1.55578427,160.73,160.67,29.50982498]
[1724660594306,1.55578427,160.73,160.67,20.0]
[1724660594508,1.55578427,160.73,160.67,29.50982498]
[1724660594906,1.55578427,160.73,160.67,20.0]
[1724660595310,1.55578427,160.73,160.66,20.0]
[1724660595522,17.28750925,160.73,160.61,8.50292629]
[1724660596150,17.28750925,160.73,160.63,9.50982498]
[1724660596327,396.522,160.72,160.62,1.557431]
[1724660596528,1.55627006,160.71,160.63,9.50982498]
[1724660596726,1.55627051,160.7,160.63,9.50982498]
[1724660596932,15.7186,160.69,160.63,9.50982498]
[1724660597147,1.55627155,160.68,160.61,8.50292629]
[1724660597353,1.55632768,160.67,160.62,9.50982498]
[1724660597720,1.55632768,160.67,160.63,20.0]
[1724660597950,1.55632768,160.67,160.62,29.50982498]
[1724660598448,15.7186,160.69,160.64,9.50982498]
[1724660598636,15.7186,160.69,160.65,20.0]
[1724660599459,390.3,160.71,160.66,9.50982498]
[1724660599668,390.3,160.71,160.68,9.50982498]
[1724660599945,22.9171,160.78,160.7,9.50982498]
[1724660600153,22.9171,160.78,160.72,9.50982498]
[1724660600355,22.9171,160.78,160.73,20.0]
[1724660600548,1.55536589,160.77,160.73,20.0]
[1724660600732,1.55551797,160.76,160.73,20.0]
[1724660600934,1.55551797,160.76,160.7,20.0]
[1724660601139,1.55551797,160.76,160.69,9.50982498]
[1724660601343,1.55551797,160.76,160.7,20.0]
[1724660602629,1.55563269,160.77,160.71,9.50982498]
[1724660602950,22.9171,160.78,160.72,20.0]
[1724660602951,1.55540244,160.76,160.72,20.0]
[1724660604929,1.55540244,160.76,160.71,20.0]
[1724660605733,1.55540244,160.76,160.72,9.50982498]
[1724660605959,390.3,160.77,160.74,9.50982498]
[1724660606270,390.3,160.77,160.75,20.0]
[1724660608247,390.3,160.84,160.76,9.50982498]
[1724660608554,15.4097,160.85,160.77,20.0]
[1724660608860,7.7722384,160.84,160.77,20.0]
[1724660609031,15.5369,160.91,160.71,2.66041635]
[1724660609032,9.50982498,160.79,160.71,2.66041635]
[1724660609237,22.2654,160.74,160.65,9.50982498]
[1724660609464,1.55602019,160.73,160.65,9.50982498]
[1724660610681,1.55602019,160.73,160.63,24.81760731]
[1724660610854,1.55602019,160.73,160.63,34.32743229]
[1724660611055,11.06584517,160.73,160.63,34.32743229]
[1724660611281,9.50982498,160.7,160.59,31.34472498]
[1724660611576,9.50982498,160.7,160.6,1.55778478]
[1724660611577,7.77961647,160.69,160.6,1.55778478]
[1724660611741,7.77961647,160.69,160.59,21.8349]
[1724660611742,7.77961647,160.69,160.59,31.34472498]
[1724660611949,7.77961647,160.69,160.59,16.00702498]
[1724660612169,6.2236,160.68,160.56,7.65359296]
[1724660612371,1.55665196,160.67,160.58,9.50982498]
[1724660612558,1.55665196,160.67,160.6,9.50982498]
[1724660613254,1.55665196,160.67,160.61,20.0]
[1724660613653,1.55665196,160.67,160.6,9.50982498]
[1724660614049,1.55659739,160.66,160.6,9.50982498]
[1724660614272,1.55659739,160.66,160.58,9.50982498]
[1724660615058,1.55659739,160.66,160.59,20.0]
[1724660615259,1.55659739,160.66,160.6,9.50982498]
[1724660615450,1.26011886,160.65,160.61,20.0]
[1724660615664,1.55667164,160.64,160.59,20.0]
[1724660616673,1.55679198,160.67,160.59,20.0]
[1724660617577,6.2248,160.65,160.54,9.50982498]
[1724660617780,9.50982498,160.63,160.54,9.50982498]
[1724660617987,1.557099,160.62,160.56,9.50982498]
[1724660618563,1.557099,160.62,160.58,9.50982498]
[1724660618763,1.557099,160.62,160.59,20.0]
[1724660619068,28.8561,160.66,160.59,20.0]
[1724660619069,1.55684364,160.65,160.59,20.0]
[1724660619275,1.55681276,160.64,160.59,20.0]
[1724660620376,1.55681276,160.64,160.58,9.50982498]
[1724660620585,1.55681276,160.64,160.59,20.0]
[1724660622271,28.8561,160.66,160.58,9.50982498]
[1724660622584,391.85685397,160.65,160.59,20.0]
[1724660622793,1.55684121,160.64,160.59,20.0]
[1724660624094,1.55684121,160.64,160.57,9.50982498]
[1724660624260,1.55684121,160.64,160.59,9.50982498]
[1724660625462,390.3,160.65,160.61,9.50982498]
[1724660626567,390.3,160.65,160.63,9.50982498]
[1724660626794,22.1007,160.7,160.64,20.0]
[1724660627090,1.5562776,160.69,160.64,20.0]
[1724660628891,1.55628079,160.68,160.65,9.50982498]
[1724660629595,390.3,160.72,160.67,9.50982498]
[1724660629778,6.5128,160.74,160.67,9.50982498]
[1724660629975,1.55585435,160.73,160.67,9.50982498]
[1724660630172,1.55585435,160.73,160.64,58.03929992]
[1724660630173,1.55585435,160.73,160.69,9.50982498]
[1724660630589,1.55585435,160.73,160.68,20.0]
[1724660631391,1.55581339,160.72,160.68,20.0]
[1724660631702,1.55581339,160.72,160.64,9.50982498]
[1724660631898,1.55581339,160.72,160.65,20.0]
[1724660632781,1.55595804,160.71,160.65,20.0]
[1724660632979,25.76442498,160.75,160.59,24.42890466]
[1724660632980,1.55622344,160.7,160.61,9.50982498]
[1724660633183,1.55622344,160.7,160.62,1.55754303]
[1724660633389,11.06604842,160.7,160.62,1.55754303]
[1724660633683,11.06604842,160.7,160.6,2.41390037]
[1724660633684,9.50982498,160.68,160.6,1.55754303]
[1724660633886,390.3,160.68,160.61,9.50982498]
[1724660634083,1.55654589,160.67,160.6,1.55754303]
[1724660634983,1.55654589,160.67,160.6,21.55754303]
[1724660635183,1.55654589,160.67,160.61,1.55754303]
[1724660635681,1.55654589,160.67,160.6,20.0]
[1724660636800,390.3,160.68,160.62,23.83326554]
[1724660637004,390.3,160.68,160.63,21.55781634]
[1724660637207,1.556283,160.67,160.63,20.0]
[1724660637380,391.856283,160.67,160.63,20.0]
[1724660637575,391.856283,160.67,160.6,20.0]
[1724660637795,391.856283,160.67,160.58,20.0]
[1724660637997,391.856283,160.67,160.59,1.55790483]
[1724660638296,391.856283,160.67,160.58,20.0]
[1724660638495,391.856283,160.67,160.59,1.55794408]
[1724660640406,407.937983,160.67,160.59,1.55794408]
[1724660640580,6.2244,160.66,160.59,1.55794408]
[1724660640789,414.073683,160.67,160.56,1.55821041]
[1724660640790,1.55689984,160.65,160.56,1.55821041]
[1724660641003,1.55691845,160.64,160.56,1.55821041]
[1724660642509,1.55689053,160.63,160.56,1.55821041]
[1724660643212,1.55689053,160.63,160.56,21.55821041]
[1724660643504,1.55688941,160.62,160.57,1.55821041]
[1724660643916,1.55688941,160.62,160.56,20.0]
[1724660644083,1.55688941,160.62,160.57,1.55818689]
[1724660644283,396.5247,160.65,160.56,20.0]
[1724660644284,1.55701132,160.61,160.56,20.0]
[1724660644500,1.55701382,160.6,160.54,22.41809443]
[1724660644708,1.55701382,160.6,160.55,1.55818356]
[1724660645085,17.02331382,160.6,160.54,1.55818356]
[1724660645284,17.02331382,160.6,160.53,1.55818356]
[1724660646306,17.02331382,160.6,160.52,4.13292969]
[1724660646709,17.02331382,160.6,160.52,1.71399086]
[1724660647291,15.4663,160.6,160.52,0.1558073]
[1724660647512,15.4663,160.6,160.52,1.71426803]
[1724660648202,1.55731768,160.59,160.52,21.71426803]
[1724660648397,1.55731768,160.59,160.53,1.55846073]
[1724660649006,22.0498,160.6,160.53,1.55846073]
[1724660649320,390.3,160.59,160.53,1.55846073]
[1724660650486,390.3,160.59,160.53,1.55849716]
[1724660651416,1.55740091,160.58,160.53,1.55849716]
[1724660651810,1.55740111,160.57,160.53,1.55849716]
[1724660653999,1.55740111,160.57,160.52,0.1558073]
[1724660655299,390.3,160.56,160.52,0.1558073]
[1724660655500,1.55767347,160.55,160.52,0.1558073]
[1724660655701,1.55768048,160.54,160.52,0.1558073]
[1724660656733,1.55767789,160.57,160.52,0.1558073]
[1724660660006,390.3,160.58,160.52,0.1558073]
[1724660660420,1.55751023,160.57,160.52,0.1558073]
[1724660661418,390.3,160.56,160.52,0.1558073]
[1724660661618,1.55768379,160.55,160.52,0.1558073]
[1724660661803,1.5576851,160.54,160.52,0.1558073]
[1724660664513,24.2595851,160.54,160.52,0.1558073]
[1724660664834,30.4059851,160.54,160.52,0.1558073]
[1724660665130,24.1769851,160.54,160.52,0.1558073]
[1724660665828,22.6193,160.54,160.52,0.1558073]
[1724660666011,1.55783258,160.53,160.52,0.1558073]
[1724660668311,1.55769423,160.57,160.52,0.1558073]
[1724660668507,1.55749104,160.56,160.52,0.1558073]
[1724660668726,1.55749104,160.56,160.52,20.1558073]
[1724660669206,1.55749104,160.56,160.53,20.0]
[1724660669407,1.55749104,160.56,160.52,0.1558073]
[1724660670131,1.55749104,160.56,160.52,20.1558073]
[1724660670534,1.55741969,160.57,160.52,20.1558073]
[1724660670705,1.55733214,160.61,160.53,43.83326554]
[1724660670910,391.85733214,160.6,160.53,23.83326554]
[1724660671313,391.85733214,160.6,160.52,0.1558073]
[1724660671314,391.85733214,160.6,160.54,20.0]
[1724660671520,391.85733214,160.6,160.52,0.1558073]
[1724660676218,390.3,160.59,160.52,0.1558073]
[1724660676514,1.55732764,160.58,160.52,0.1558073]
[1724660676724,1.55733718,160.57,160.52,0.1558073]
[1724660678435,1.55733718,160.57,160.52,20.1558073]
[1724660679135,1.55733718,160.57,160.52,0.1558073]
[1724660679339,15.9777,160.56,160.52,0.1558073]
[1724660679544,1.55781949,160.55,160.52,0.1558073]
[1724660679712,1.55781968,160.54,160.52,0.1558073]
[1724660681638,390.3,160.55,160.52,0.1558073]
[1724660681639,390.3,160.55,160.53,9.5501136]
[1724660683847,15.6201,160.6,160.53,9.5501136]
[1724660683848,15.6201,160.6,160.54,21.55880769]
[1724660684143,1.55710193,160.59,160.56,9.5501136]
[1724660684348,1.55710193,160.59,160.54,20.0]
[1724660684642,1.55710193,160.59,160.52,9.7059209]
[1724660684855,1.55710193,160.59,160.53,21.55874638]
[1724660685141,1.55710193,160.59,160.54,1.55874638]
[1724660685345,1.55710193,160.59,160.53,20.0]
[1724660685644,1.55710193,160.59,160.54,1.55871561]
[1724660685949,1.55710193,160.59,160.53,9.5501136]
[1724660686131,1.55710193,160.59,160.54,21.55871501]
[1724660686448,1.55710193,160.59,160.54,20.0]